bitfinex-derivatives/quotes_BTCF0:USTF0_20241203
["timestamp","ask_amount","ask_price","bid_price","bid_amount"]
[1733186625617,0.057066,95995.0,95994.0,0.07198227]
[1733186625905,0.005,95995.0,95994.0,0.07198227]
[1733186626907,0.057066,95995.0,95994.0,0.07198227]
[1733186627303,0.005,95995.0,95994.0,0.43278227]
[1733186633511,0.057066,95995.0,95994.0,0.07198227]
[1733186635214,0.057066,95995.0,95994.0,0.053066]
[1733186637920,0.005,95995.0,95994.0,0.053066]
[1733186638713,0.057066,95995.0,95994.0,0.053066]
[1733186642521,0.005,95995.0,95994.0,0.053066]
[1733186647519,0.0026,96008.0,96007.0,0.05206]
[1733186647719,0.0026,96021.0,96020.0,0.052053]
[1733186647921,0.05205,96024.0,96023.0,0.052051]
[1733186648229,0.20754095,96024.0,96023.0,0.052051]
[1733186649836,0.15549095,96024.0,96023.0,0.052051]
[1733186650326,0.001,96024.0,96023.0,0.059051]
[1733186650733,0.15734968,96024.0,96023.0,0.059051]
[1733186658630,0.20939968,96024.0,96023.0,0.059051]
[1733186659027,0.20939968,96024.0,96023.0,0.007]
[1733186659329,0.31354085,96024.0,96023.0,0.007]
[1733186659833,0.31354085,96024.0,96023.0,0.059051]
[1733186661125,0.26149085,96024.0,96023.0,0.059051]
[1733186661332,0.15734968,96024.0,96023.0,0.059051]
[1733186666642,0.20939968,96024.0,96023.0,0.059051]
[1733186668443,0.15734968,96024.0,96023.0,0.059051]
[1733186670338,0.001,96024.0,96023.0,0.059051]
[1733186673045,0.001,96024.0,96023.0,0.419851]
[1733186674537,0.0026,96037.0,96036.0,0.052044]
[1733186674743,0.0026,96056.0,96048.0,0.052038]
[1733186674947,0.05203,96061.0,96060.0,0.052031]
[1733186675445,0.20895593,96061.0,96060.0,0.052031]
[1733186677537,0.20895593,96061.0,96060.0,0.056031]
[1733186680040,0.20895593,96061.0,96060.0,0.004]
[1733186680242,0.31305699,96061.0,96060.0,0.004]
[1733186680553,0.31305699,96061.0,96060.0,0.056031]
[1733186681347,0.31305699,96061.0,96060.0,0.004]
[1733186681856,0.36512699,96061.0,96060.0,0.004]
[1733186691055,0.72592699,96061.0,96060.0,0.004]
[1733186691357,0.67385699,96061.0,96060.0,0.004]
[1733186691560,0.72592699,96061.0,96060.0,0.004]
[1733186693252,0.72592699,96061.0,96060.0,0.056031]
[1733186696856,0.56979593,96061.0,96060.0,0.056031]
[1733186697053,0.51772593,96061.0,96060.0,0.056031]
[1733186697254,0.15692593,96061.0,96060.0,0.056031]
[1733186697654,0.15673906,96063.0,96060.0,0.056031]
[1733186697851,0.052028,96066.0,96062.0,0.05203]
[1733186698058,0.052028,96066.0,96065.0,0.052028]
[1733186698059,0.20876706,96066.0,96065.0,0.052028]
[1733186698262,0.052028,96066.0,96065.0,0.052028]
[1733186698563,0.31271083,96066.0,96065.0,0.052028]
[1733186699656,0.31271083,96066.0,96065.0,0.055028]
[1733186700251,0.15658177,96066.0,96065.0,0.055028]
[1733186700664,0.15600902,96071.0,96070.0,0.052026]
[1733186700854,0.15600902,96071.0,96065.0,0.003]
[1733186700855,0.15600902,96072.0,96071.0,0.052025]
[1733186701060,0.10409564,96072.0,96071.0,0.052025]
[1733186701261,0.052024,96073.0,96072.0,0.052025]
[1733186701561,0.25979328,96073.0,96065.0,0.3638]
[1733186701755,0.25979328,96073.0,96072.0,0.052025]
[1733186701951,0.15569764,96073.0,96072.0,0.052025]
[1733186702372,0.15569764,96074.0,96073.0,0.052024]
[1733186702564,0.3608,96075.0,96074.0,0.052024]
[1733186702758,0.13056,96084.0,96079.0,0.052019]
[1733186702953,0.182578,96084.0,96083.0,0.052019]
[1733186703364,0.44368549,96084.0,96083.0,0.052019]
[1733186703757,0.33959744,96084.0,96083.0,0.052019]
[1733186703959,0.31311358,96084.0,96079.0,0.01940575]
[1733186704259,0.10409,96080.0,96079.0,0.01940575]
[1733186704761,0.052024,96074.0,96065.0,0.3608]
[1733186704968,0.412824,96073.0,96070.0,0.052026]
[1733186705261,0.05203,96062.0,96061.0,0.0343]
[1733186705452,0.05203,96062.0,96061.0,0.10516084]
[1733186706054,0.41283,96062.0,96061.0,0.10516084]
[1733186706262,0.41283,96062.0,96061.0,0.05312984]
[1733186706460,0.41283,96062.0,96061.0,0.0343]
[1733186706665,0.41283,96062.0,96061.0,0.086331]
[1733186706866,0.41383,96062.0,96061.0,0.094331]
[1733186707771,0.05303,96062.0,96061.0,0.094331]
[1733186708167,0.05303,96062.0,96061.0,0.060031]
[1733186708962,0.36637488,96062.0,96061.0,0.008]
[1733186709278,0.36637488,96062.0,96061.0,0.05923101]
[1733186711456,0.36637488,96062.0,96061.0,0.00720001]
[1733186715074,0.36637488,96062.0,96061.0,0.05923101]
[1733186715660,0.31430488,96062.0,96061.0,0.05923101]
[1733186716466,0.26227488,96062.0,96061.0,0.05923101]
[1733186717382,0.31430488,96062.0,96061.0,0.05923101]
[1733186717774,0.30106488,96062.0,96061.0,0.05923101]
[1733186718476,0.24903488,96062.0,96061.0,0.05923101]
[1733186718979,0.30106488,96062.0,96061.0,0.05923101]
[1733186723678,0.35313488,96062.0,96061.0,0.00720001]
[1733186726467,0.052039,96046.0,96045.0,0.052039]
[1733186726871,0.20830619,96046.0,96045.0,0.052039]
[1733186727781,0.21530619,96046.0,96045.0,0.053039]
[1733186736274,0.21530619,96046.0,96045.0,0.001]
[1733186736471,0.21530619,96046.0,96045.0,0.05304]
[1733186737580,0.007,96046.0,96045.0,0.05304]
[1733186738184,0.05207,96071.0,96045.0,0.05304]
[1733186738185,0.0026,96067.0,96066.0,0.052028]
[1733186738477,0.3608,96083.0,96066.0,0.052028]
[1733186738478,0.05202,96082.0,96066.0,0.7216]
[1733186738680,0.06833212,96080.0,96079.0,0.052021]
[1733186738885,0.31199058,96082.0,96081.0,0.05202]
[1733186739085,0.05202,96082.0,96081.0,0.05202]
[1733186739388,0.31199058,96082.0,96081.0,0.05202]
[1733186740179,0.31199058,96082.0,96081.0,0.05402]
[1733186741591,0.31199058,96082.0,96081.0,0.002]
[1733186741783,0.36406058,96082.0,96081.0,0.002]
[1733186746889,0.31199058,96082.0,96081.0,0.002]
[1733186747496,0.25997058,96082.0,96081.0,0.05402]
[1733186747701,0.15587603,96082.0,96081.0,0.05402]
[1733186748088,0.052019,96082.0,96081.0,0.05402]
[1733186748396,0.20763184,96082.0,96081.0,0.05402]
[1733186750591,0.20963184,96082.0,96081.0,0.05402]
[1733186753002,0.15761284,96082.0,96081.0,0.05402]
[1733186757995,0.00056001,96097.0,96096.0,0.052012]
[1733186758199,0.1,96100.0,96099.0,0.05201]
[1733186758595,0.25594625,96100.0,96099.0,0.05201]
[1733186759894,0.25594625,96100.0,96099.0,0.41281]
[1733186760091,0.1,96100.0,96099.0,0.41281]
[1733186760399,0.0026,96118.0,96117.0,0.052001]
[1733186760607,0.3608,96120.0,96119.0,0.051999]
[1733186760909,0.51703585,96120.0,96119.0,0.051999]
[1733186761204,0.67307417,96120.0,96119.0,0.051999]
[1733186761996,0.67807417,96120.0,96119.0,0.051999]
[1733186763005,0.052002,96115.0,96114.0,0.052]
[1733186763195,0.62663518,96120.0,96119.0,0.051999]
[1733186763396,0.36636001,96120.0,96119.0,0.051999]
[1733186763601,0.52183616,96120.0,96119.0,0.051999]
[1733186763804,0.67718389,96120.0,96119.0,0.051999]
[1733186764201,0.62018489,96120.0,96119.0,0.051999]
[1733186764901,0.62518489,96120.0,96119.0,0.051999]
[1733186766408,0.62518489,96120.0,96119.0,0.052999]
[1733186768803,0.26438489,96120.0,96119.0,0.052999]
[1733186769400,0.16034773,96120.0,96119.0,0.052999]
[1733186769803,0.005,96120.0,96119.0,0.413799]
[1733186770197,0.182387,96142.0,96140.0,0.051988]
[1733186770602,0.15568495,96141.0,96140.0,0.051988]
[1733186771204,0.0306,96146.0,96145.0,0.051985]
[1733186771600,0.18628495,96146.0,96145.0,0.051985]
[1733186772702,0.19528495,96146.0,96145.0,0.052985]
[1733186773108,0.19828495,96146.0,96145.0,0.052985]
[1733186773704,0.19828495,96146.0,96145.0,0.001]
[1733186773905,0.30229397,96146.0,96145.0,0.001]
[1733186774697,0.35427897,96146.0,96145.0,0.001]
[1733186775313,0.35427897,96146.0,96145.0,0.052985]
[1733186775910,0.19828495,96146.0,96145.0,0.052985]
[1733186776105,0.16768495,96146.0,96145.0,0.052985]
[1733186776606,0.012,96146.0,96145.0,0.413785]
[1733186776810,0.051977,96161.0,96145.0,0.413785]
[1733186776811,0.04941598,96166.0,96160.0,0.051977]
[1733186777002,0.17977598,96166.0,96160.0,0.051977]
[1733186777205,0.15612565,96161.0,96160.0,0.051977]
[1733186777403,0.26013467,96161.0,96160.0,0.051977]
[1733186777909,0.3608,96175.0,96160.0,0.051977]
[1733186777910,0.00056001,96188.0,96160.0,0.31934111]
[1733186778103,0.13036,96205.0,96187.0,0.051963]
[1733186778104,0.0026,96189.0,96187.0,0.051963]
[1733186778299,0.01891847,96198.0,96182.0,0.49116]
[1733186778603,0.26002748,96196.0,96194.0,0.051958]
[1733186778802,0.26002748,96196.0,96190.0,0.3608]
[1733186778803,0.1549583,96197.0,96196.0,0.051958]
[1733186779011,0.113657,96199.0,96196.0,0.051958]
[1733186779208,0.1549583,96198.0,96196.0,0.051958]
[1733186779412,0.1549583,96197.0,96196.0,0.051958]
[1733186779612,0.10996091,96198.0,96196.0,0.051958]
[1733186779910,0.057957,96198.0,96190.0,0.49176]
[1733186780114,0.10395388,96197.0,96192.0,0.05196]
[1733186780311,0.26026468,96197.0,96192.0,0.05196]
[1733186780512,0.26026468,96197.0,96193.0,0.051959]
[1733186781015,0.26026468,96197.0,96195.0,0.051958]
[1733186781314,0.26026468,96197.0,96196.0,0.001]
[1733186781817,0.26026468,96197.0,96195.0,0.051958]
[1733186782214,0.15617145,96197.0,96195.0,0.051958]
[1733186782516,0.051959,96195.0,96193.0,0.054959]
[1733186782816,0.15621864,96194.0,96193.0,0.054959]
[1733186783007,0.15621864,96194.0,96193.0,0.003]
[1733186784010,0.15562199,96198.0,96197.0,0.051957]
[1733186784321,0.05195,96211.0,96199.0,0.051956]
[1733186784609,0.05195,96211.0,96199.0,0.182276]
[1733186784815,0.051952,96207.0,96199.0,0.182276]
[1733186785005,0.051953,96205.0,96199.0,0.182276]
[1733186785509,0.051959,96195.0,96193.0,0.006]
[1733186786013,0.05196,96193.0,96192.0,0.3608]
[1733186786311,0.051965,96183.0,96182.0,0.00064]
[1733186786516,0.35374344,96183.0,96177.0,0.18714094]
[1733186786813,0.051968,96178.0,96177.0,0.18654094]
[1733186787015,0.051968,96178.0,96177.0,0.08674094]
[1733186787209,0.051969,96175.0,96174.0,0.00155959]
[1733186787612,0.20754243,96175.0,96149.0,0.0026]
[1733186787819,0.20754243,96175.0,96120.0,0.48570576]
[1733186787820,0.3608,96154.0,96137.0,0.0026]
[1733186788112,0.3608,96140.0,96137.0,0.05199]
[1733186788515,0.15665176,96139.0,96131.0,0.0321]
[1733186788812,0.26064294,96139.0,96137.0,0.05199]
[1733186789016,0.13024,96150.0,96149.0,0.051983]
[1733186789215,0.051982,96152.0,96149.0,0.051983]
[1733186789416,0.051982,96152.0,96142.0,0.3608]
[1733186789417,0.25967386,96150.0,96148.0,0.051984]
[1733186789617,0.13024,96155.0,96148.0,0.051984]
[1733186789918,0.15599546,96151.0,96150.0,0.051983]
[1733186790309,0.051983,96150.0,96142.0,0.3608]
[1733186790511,0.051984,96148.0,96147.0,0.051984]
[1733186790819,0.20839522,96148.0,96147.0,0.051984]
[1733186791318,0.31240208,96148.0,96147.0,0.051984]
[1733186791915,0.31440208,96148.0,96147.0,0.052984]
[1733186792615,0.31440208,96148.0,96147.0,0.001]
[1733186792916,0.31440208,96148.0,96147.0,0.002]
[1733186794719,0.31240208,96148.0,96147.0,0.001]
[1733186794917,0.31340208,96148.0,96147.0,0.002]
[1733186795507,0.44364208,96148.0,96147.0,0.002]
[1733186795708,0.44364208,96148.0,96112.0,0.31090157]
[1733186795709,0.051994,96129.0,96115.0,0.24872125]
[1733186795913,0.3608,96129.0,96124.0,0.051997]
[1733186796511,0.051996,96125.0,96124.0,0.051997]
[1733186797821,0.051999,96120.0,96118.0,0.05212999]
[1733186798215,0.002,96125.0,96124.0,0.001]
[1733186798627,0.1583223,96125.0,96123.0,0.051997]
[1733186798823,0.1583223,96125.0,96124.0,0.002]
[1733186799419,0.002,96125.0,96124.0,0.002]
[1733186799627,0.10409962,96150.0,96138.0,0.051989]
[1733186799826,0.10409962,96150.0,96124.0,0.002]
[1733186799827,0.13028,96145.0,96133.0,0.3608]
[1733186800018,0.13028,96145.0,96139.0,0.051989]
[1733186800019,0.051988,96141.0,96139.0,0.051989]
[1733186800323,0.15559241,96140.0,96139.0,0.051989]
[1733186800718,0.25960576,96140.0,96139.0,0.051989]
[1733186801519,0.26760576,96140.0,96139.0,0.052989]
[1733186802221,0.26760576,96140.0,96139.0,0.053989]
[1733186802816,0.26760576,96140.0,96139.0,0.002]
[1733186803017,0.31959376,96140.0,96139.0,0.002]
[1733186803218,0.68039376,96140.0,96139.0,0.002]
[1733186803629,0.67239376,96140.0,96139.0,0.001]
[1733186803819,0.68039376,96140.0,96139.0,0.002]
[1733186804622,0.67239376,96140.0,96139.0,0.001]
[1733186804829,0.67339376,96140.0,96139.0,0.01]
[1733186805418,0.67339376,96140.0,96139.0,0.018]
[1733186806828,0.67339376,96140.0,96116.0,0.03256054]
[1733186806829,0.052,96119.0,96116.0,0.00156054]
[1733186807019,0.54308,96119.0,96116.0,0.00156054]
[1733186807219,0.64632587,96119.0,96116.0,0.00156054]
[1733186807430,0.052001,96117.0,96108.0,0.00044]
[1733186807620,0.412805,96109.0,96108.0,0.00044]
[1733186807818,0.543085,96109.0,96108.0,0.00044]
[1733186808022,0.8029059,96109.0,96108.0,0.00044]
[1733186808233,0.80298012,96109.0,96108.0,0.00044]
[1733186808837,0.80298012,96109.0,96108.0,0.00144]
[1733186808838,0.80998012,96109.0,96108.0,0.00144]
[1733186809333,0.80298012,96109.0,96108.0,0.00044]
[1733186809535,0.80398012,96109.0,96108.0,0.00944]
[1733186809924,0.80698012,96109.0,96108.0,0.00944]
[1733186810624,0.80398012,96109.0,96108.0,0.00944]
[1733186810831,0.80498012,96109.0,96108.0,0.01244]
[1733186811536,0.80398012,96109.0,96108.0,0.00344]
[1733186811833,0.80498012,96109.0,96108.0,0.01244]
[1733186812221,0.26189512,96109.0,96108.0,0.01244]
[1733186812423,0.3608,96119.0,96108.0,0.01244]
[1733186812621,0.4128,96119.0,96116.0,0.052001]
[1733186812823,0.20862162,96118.0,96117.0,0.0315]
[1733186813432,0.20868402,96118.0,96117.0,0.0315]
[1733186814629,0.20968402,96118.0,96117.0,0.0375]
[1733186815239,0.15768402,96118.0,96117.0,0.0375]
[1733186815730,0.15868402,96118.0,96117.0,0.0465]
[1733186816432,0.15868402,96118.0,96117.0,0.0495]
[1733186816735,0.16368402,96118.0,96117.0,0.0415]
[1733186817238,0.17168402,96118.0,96117.0,0.0335]
[1733186817436,0.0150624,96118.0,96117.0,0.0335]
[1733186817636,0.0150624,96118.0,96117.0,0.097]
[1733186818733,0.0150624,96118.0,96117.0,0.0658]
[1733186819237,0.0150624,96118.0,96117.0,0.0335]
[1733186820232,0.0670624,96118.0,96117.0,0.0335]
[1733186820634,0.0670624,96118.0,96117.0,0.085501]
[1733186820836,0.0150624,96118.0,96117.0,0.085501]
[1733186822542,0.0150624,96118.0,96117.0,0.446301]
[1733186822842,0.3608,96151.0,96134.0,0.051991]
[1733186822843,0.13024,96141.0,96134.0,0.051991]
[1733186823043,0.051991,96135.0,96134.0,0.051991]
[1733186823339,0.20789741,96135.0,96134.0,0.051991]
[1733186823641,0.25994573,96135.0,96134.0,0.051991]
[1733186824036,0.26094573,96135.0,96134.0,0.057991]
[1733186825150,0.15690641,96135.0,96134.0,0.057991]
[1733186826044,0.15690641,96135.0,96134.0,0.063991]
[1733186827045,0.001,96135.0,96134.0,0.063991]
[1733186827242,0.13024,96151.0,96150.0,0.051983]
[1733186827443,0.13024,96157.0,96156.0,0.05198]
[1733186827645,0.45732749,96169.0,96150.0,0.7222]
[1733186827837,0.10402092,96157.0,96150.0,0.3608]
[1733186828141,0.051982,96151.0,96150.0,0.3608]
[1733186828548,0.20736738,96151.0,96150.0,0.3608]
[1733186829341,0.20736738,96151.0,96150.0,0.3668]
[1733186829952,0.20736738,96151.0,96150.0,0.3688]
[1733186830642,0.20736738,96151.0,96150.0,0.3728]
[1733186831548,0.20736738,96151.0,96150.0,0.012]
[1733186831848,0.31137099,96151.0,96150.0,0.012]
[1733186832244,0.051993,96132.0,96114.0,0.3608]
[1733186832549,0.051995,96129.0,96128.0,0.051995]
[1733186834146,0.13024,96137.0,96128.0,0.001]
[1733186834350,0.13024,96137.0,96136.0,0.05199]
[1733186834549,0.051988,96141.0,96140.0,0.051987]
[1733186834856,0.05198,96156.0,96155.0,0.051979]
[1733186835852,0.25944136,96156.0,96155.0,0.051979]
[1733186836347,0.25944136,96156.0,96155.0,0.053979]
[1733186836956,0.15542693,96156.0,96155.0,0.056979]
[1733186837460,0.05198,96157.0,96156.0,0.05198]
[1733186837842,0.20724372,96157.0,96156.0,0.05198]
[1733186839353,0.20724372,96157.0,96156.0,0.05398]
[1733186839552,0.15526372,96157.0,96156.0,0.05698]
[1733186839960,0.051978,96159.0,96158.0,0.051979]
[1733186840149,0.13024,96165.0,96156.0,0.005]
[1733186840150,0.051976,96163.0,96162.0,0.051976]
[1733186840549,0.3120375,96163.0,96162.0,0.051976]
[1733186840751,0.051976,96163.0,96162.0,0.051976]
[1733186840952,0.182214,96168.0,96167.0,0.051973]
[1733186841254,0.13024,96174.0,96169.0,0.051973]
[1733186841452,0.051971,96172.0,96169.0,0.051973]
[1733186841750,0.51625926,96170.0,96169.0,0.051973]
[1733186843150,0.51625926,96170.0,96169.0,0.052973]
[1733186843151,0.52225926,96170.0,96169.0,0.052973]
[1733186843555,0.52925926,96170.0,96169.0,0.053973]
[1733186844053,0.16845926,96170.0,96169.0,0.414773]
[1733186844965,0.013,96170.0,96169.0,0.414773]
[1733186845253,0.0026,96186.0,96185.0,0.051964]
[1733186845453,0.05196,96192.0,96191.0,0.051961]
[1733186845752,0.20841239,96192.0,96191.0,0.051961]
[1733186846554,0.20841239,96192.0,96191.0,0.055961]
[1733186846958,0.20841239,96192.0,96191.0,0.059961]
[1733186847453,0.20841239,96192.0,96191.0,0.008]
[1733186847454,0.67317167,96192.0,96191.0,0.008]
[1733186850048,0.69218858,96192.0,96191.0,0.008]
[1733186852451,0.67317167,96192.0,96191.0,0.008]
[1733186852655,0.051972,96170.0,96169.0,0.415372]
[1733186852860,0.051969,96176.0,96169.0,0.3608]
[1733186853060,0.13016,96180.0,96174.0,0.05197]
[1733186853261,0.31221476,96175.0,96174.0,0.05197]
[1733186853450,0.31221476,96175.0,96169.0,0.3608]
[1733186853451,0.051969,96175.0,96169.0,0.3608]
[1733186853656,0.051971,96172.0,96171.0,0.051971]
[1733186854256,0.15640867,96172.0,96165.0,0.00155971]
[1733186854459,0.051974,96166.0,96165.0,0.00155971]
[1733186854856,0.20838267,96166.0,96165.0,0.00155971]
[1733186855460,0.20838267,96166.0,96165.0,0.00855971]
[1733186856155,0.20838267,96166.0,96165.0,0.00155971]
[1733186856355,0.20838267,96166.0,96165.0,0.00955971]
[1733186856555,0.20838267,96166.0,96165.0,0.06153471]
[1733186856959,0.20838267,96166.0,96165.0,0.00955971]
[1733186857263,0.31237006,96166.0,96165.0,0.01855971]
[1733186858966,0.31237006,96166.0,96165.0,0.017]
[1733186859164,0.67317006,96166.0,96165.0,0.017]
[1733186860259,0.67317006,96166.0,96165.0,0.068975]
[1733186860972,0.67317006,96166.0,96165.0,0.017]
[1733186862954,0.67317006,96166.0,96165.0,0.068975]
[1733186863463,0.31237006,96166.0,96165.0,0.068975]
[1733186865968,0.15640867,96166.0,96165.0,0.068975]
[1733186866171,0.20838267,96166.0,96165.0,0.017]
[1733186866361,0.51676139,96166.0,96165.0,0.017]
[1733186866675,0.6722846,96166.0,96165.0,0.017]
[1733186867163,0.69123111,96166.0,96165.0,0.017]
[1733186868665,0.6722846,96166.0,96165.0,0.017]
[1733186869669,0.8024446,96166.0,96165.0,0.017]
[1733186869869,0.8024446,96166.0,96165.0,0.068975]
[1733186870072,0.8024446,96166.0,96165.0,0.017]
[1733186875183,0.2595106,96166.0,96165.0,0.068975]
[1733186875468,0.6722846,96166.0,96165.0,0.017]
[1733186875668,0.6722846,96166.0,96165.0,0.068975]
[1733186875868,0.2595106,96166.0,96165.0,0.068975]
[1733186876063,0.2595106,96166.0,96165.0,0.017]
[1733186876064,0.6722846,96166.0,96165.0,0.017]
[1733186878070,0.8024046,96166.0,96165.0,0.017]
[1733186879181,0.6722846,96166.0,96165.0,0.017]
[1733186879368,0.6203106,96166.0,96165.0,0.017]
[1733186879672,0.15552321,96166.0,96165.0,0.068975]
[1733186879980,0.41277,96174.0,96165.0,0.068975]
[1733186879981,0.15646507,96173.0,96165.0,0.03633858]
[1733186880364,0.051971,96172.0,96165.0,0.03633858]
[1733186880671,0.051971,96172.0,96166.0,0.051974]
[1733186880672,0.15646507,96171.0,96166.0,0.051974]
[1733186880876,0.15646507,96171.0,96170.0,0.051972]
[1733186881177,0.10398739,96171.0,96170.0,0.051972]
[1733186881383,0.15572843,96172.0,96171.0,0.051972]
[1733186881674,0.15572843,96171.0,96170.0,0.051972]
[1733186881876,0.15572843,96171.0,96167.0,0.0312]
[1733186881877,0.15572843,96172.0,96167.0,0.0312]
[1733186882074,0.051971,96173.0,96172.0,0.051971]
[1733186882472,0.20829862,96173.0,96172.0,0.051971]
[1733186883675,0.31227844,96173.0,96172.0,0.051971]
[1733186883871,0.051972,96171.0,96170.0,0.007]
[1733186884071,0.051972,96171.0,96170.0,0.058972]
[1733186884268,0.20714344,96171.0,96170.0,0.058972]
[1733186884470,0.31112543,96171.0,96170.0,0.058972]
[1733186885171,0.31112543,96171.0,96170.0,0.051972]
[1733186885372,0.31112543,96171.0,96170.0,0.060972]
[1733186885974,0.31112543,96171.0,96170.0,0.009]
[1733186886766,0.31112543,96171.0,96170.0,0.016]
[1733186887482,0.33073054,96171.0,96170.0,0.016]
[1733186890867,0.051973,96169.0,96146.0,0.051985]
[1733186891067,0.051985,96147.0,96146.0,0.051985]
[1733186891475,0.051985,96146.0,96145.0,0.00156002]
[1733186891979,0.20791838,96146.0,96145.0,0.00156002]
[1733186892282,0.31191334,96146.0,96145.0,0.00156002]
[1733186892782,0.31191334,96146.0,96145.0,0.05354602]
[1733186893274,0.25992834,96146.0,96145.0,0.05354602]
[1733186894278,0.27392834,96146.0,96145.0,0.05554602]
[1733186895475,0.26692834,96146.0,96145.0,0.06354602]
[1733186895876,0.26092834,96146.0,96145.0,0.06254602]
[1733186896179,0.26192834,96146.0,96145.0,0.06254602]
[1733186896379,0.31391334,96146.0,96145.0,0.06254602]
[1733186897880,0.31891334,96146.0,96145.0,0.05454602]
[1733186899580,0.31791334,96146.0,96145.0,0.05454602]
[1733186899774,0.31891334,96146.0,96145.0,0.05454602]
[1733186901079,0.31891334,96146.0,96145.0,0.05354602]
[1733186901274,0.26692834,96146.0,96145.0,0.05354602]
[1733186902376,0.31891334,96146.0,96145.0,0.05354602]
[1733186902783,0.31891334,96146.0,96145.0,0.051986]
[1733186903185,0.31891334,96146.0,96139.0,0.3608]
[1733186903186,0.051989,96140.0,96139.0,0.3608]
[1733186903386,0.051989,96140.0,96134.0,0.0611]
[1733186903387,0.051991,96138.0,96137.0,0.05199]
[1733186903787,0.20828128,96138.0,96137.0,0.05199]
[1733186904083,0.3122903,96138.0,96137.0,0.05199]
[1733186905090,0.2682993,96138.0,96137.0,0.05299]
[1733186905591,0.3202893,96138.0,96137.0,0.05299]
[1733186906890,0.3282893,96138.0,96137.0,0.05399]
[1733186913503,0.2762993,96138.0,96137.0,0.05399]
[1733186914592,0.3282893,96138.0,96137.0,0.05399]
[1733186915308,0.3282893,96138.0,96137.0,0.002]
[1733186916405,0.3282893,96138.0,96137.0,0.05399]
[1733186916703,0.4584093,96138.0,96137.0,0.05399]
[1733186918701,0.4584093,96138.0,96137.0,0.002]
[1733186918905,0.8192093,96138.0,96137.0,0.002]
[1733186923315,0.8192093,96138.0,96128.0,0.00011389]
[1733186923516,0.3608,96129.0,96116.0,0.0026]
[1733186923815,0.3608,96129.0,96108.0,0.0306]
[1733186923816,0.052001,96118.0,96108.0,0.0306]
[1733186924115,0.052001,96118.0,96117.0,0.05356134]
[1733186924116,0.33742074,96118.0,96117.0,0.05356134]
[1733186924709,0.44157395,96118.0,96117.0,0.00156034]
[1733186925715,0.38957295,96118.0,96117.0,0.05356134]
[1733186925920,0.27145295,96118.0,96117.0,0.05456134]
[1733186930018,0.32345395,96118.0,96117.0,0.05456134]
[1733186930316,0.27145295,96118.0,96117.0,0.05456134]
[1733186935216,0.32345395,96118.0,96117.0,0.05456134]
[1733186936215,0.27145295,96118.0,96117.0,0.05456134]
[1733186937308,0.01211389,96118.0,96117.0,0.05456134]
[1733186937517,0.0026,96131.0,96130.0,0.051994]
[1733186937714,0.182591,96137.0,96136.0,0.051991]
[1733186938107,0.33965612,96137.0,96136.0,0.051991]
[1733186938316,0.44369544,96137.0,96136.0,0.051991]
[1733186939118,0.39270444,96137.0,96136.0,0.052991]
[1733186939512,0.40070444,96137.0,96136.0,0.053991]
[1733186940011,0.27010444,96137.0,96136.0,0.053991]
[1733186940807,0.052,96120.0,96081.0,0.05202]
[1733186941011,0.052,96120.0,96068.0,0.3608]
[1733186941012,0.052011,96099.0,96087.0,0.0327]
[1733186941212,0.052011,96099.0,96069.0,0.1306]
[1733186941413,0.10409962,96080.0,96077.0,0.0327]
[1733186941609,0.3608,96078.0,96077.0,0.0327]
[1733186941814,0.3608,96078.0,96066.0,0.01897067]
[1733186942020,0.3608,96078.0,96064.0,8.665e-05]
[1733186942021,0.052028,96067.0,96064.0,8.665e-05]
[1733186942216,0.3608,96068.0,96064.0,8.665e-05]
[1733186942424,0.20832596,96066.0,96064.0,8.665e-05]
[1733186942616,0.052029,96066.0,96064.0,8.665e-05]
[1733186942921,0.15629696,96065.0,96064.0,8.665e-05]
[1733186943120,0.2603926,96065.0,96064.0,8.665e-05]
[1733186943322,0.10409564,96065.0,96064.0,8.665e-05]
[1733186943530,0.15618419,96065.0,96064.0,8.665e-05]
[1733186943824,0.001,96066.0,96064.0,0.05211665]
[1733186944013,0.15718419,96066.0,96064.0,8.665e-05]
[1733186944218,0.001,96066.0,96064.0,8.665e-05]
[1733186944527,0.15579801,96065.0,96064.0,8.665e-05]
[1733186945019,0.15579801,96065.0,96064.0,0.00108665]
[1733186945825,0.17179801,96065.0,96064.0,0.00208665]
[1733186946232,0.016,96065.0,96064.0,0.00208665]
[1733186946420,0.016,96065.0,96064.0,0.00108665]
[1733186946421,0.16316601,96065.0,96064.0,0.00108665]
[1733186946724,0.17216601,96065.0,96064.0,0.00208665]
[1733186948815,0.016,96065.0,96064.0,0.00208665]
[1733186949020,0.016,96065.0,96064.0,0.03428665]
[1733186949721,0.015,96065.0,96064.0,0.03428665]
[1733186950124,0.05202,96083.0,96076.0,0.052023]
[1733186950317,0.13068,96086.0,96076.0,0.052023]
[1733186950621,0.15611753,96077.0,96076.0,0.052023]
[1733186952222,0.15711753,96077.0,96076.0,0.070023]
[1733186953027,0.20914053,96077.0,96076.0,0.070023]
[1733186954018,0.20914053,96077.0,96076.0,0.018]
[1733186954220,0.20914053,96077.0,96076.0,0.012]
[1733186954221,0.44290425,96077.0,96076.0,0.012]
[1733186954414,0.47350425,96077.0,96076.0,0.012]
[1733186954822,0.47350425,96077.0,96064.0,8.665e-05]
[1733186955028,0.412829,96065.0,96064.0,8.665e-05]
[1733186955421,0.56877679,96065.0,96064.0,8.665e-05]
[1733186955723,0.67287351,96065.0,96064.0,8.665e-05]
[1733186956119,0.67287351,96065.0,96064.0,0.00308665]
[1733186956729,0.67487351,96065.0,96064.0,0.00408665]
[1733186957724,0.05204,96049.0,96042.0,0.16358]
[1733186958027,0.052041,96044.0,96033.0,0.0006]
[1733186958236,0.052041,96044.0,96033.0,0.13068]
[1733186958423,0.052041,96044.0,96042.0,0.052042]
[1733186958625,0.05212765,96044.0,96042.0,0.052042]
[1733186959033,8.665e-05,96044.0,96043.0,0.05360237]
[1733186959424,8.665e-05,96044.0,96043.0,0.05460237]
[1733186959929,8.665e-05,96044.0,96043.0,0.05360237]